bitfinex-derivatives/quotes_BTCF0:USTF0_20250130
["timestamp","ask_amount","ask_price","bid_price","bid_amount"]
[1738218432863,0.61886696,105320.0,105310.0,0.28955]
[1738218433351,0.68702892,105320.0,105310.0,0.09963]
[1738218434451,0.68702892,105320.0,105310.0,0.06923]
[1738218434658,0.84452892,105320.0,105310.0,0.06923]
[1738218438766,0.84452892,105320.0,105310.0,1.56923]
[1738218440658,0.84452892,105320.0,105310.0,1.53743]
[1738218440861,0.84452892,105320.0,105310.0,1.50663]
[1738218449767,0.84452892,105320.0,105310.0,0.00663]
[1738218463096,0.77636696,105320.0,105310.0,0.00663]
[1738218463296,0.84452892,105320.0,105310.0,0.00663]
[1738218466196,0.77636696,105320.0,105310.0,0.00663]
[1738218466991,0.77636696,105320.0,105310.0,0.03793]
[1738218467398,0.65026696,105320.0,105310.0,0.03793]
[1738218467698,0.65026696,105320.0,105310.0,0.10093]
[1738218468295,0.71842892,105320.0,105310.0,0.10093]
[1738218470196,0.71842892,105320.0,105310.0,0.03793]
[1738218475302,1.07922892,105320.0,105310.0,0.03793]
[1738218480106,0.97966696,105320.0,105310.0,0.03793]
[1738218480307,1.07922892,105320.0,105310.0,0.03793]
[1738218481209,1.07922892,105320.0,105310.0,1.53793]
[1738218481702,1.07922892,105320.0,105310.0,0.03793]
[1738218481895,1.07922892,105320.0,105310.0,0.00663]
[1738218484800,1.23672892,105320.0,105310.0,0.00663]
[1738218502315,1.23672892,105320.0,105310.0,0.002]
[1738218508512,1.30489088,105320.0,105310.0,0.002]
[1738218508711,1.23672892,105320.0,105310.0,0.002]
[1738218514619,1.23668892,105320.0,105310.0,0.002]
[1738218522727,1.23668892,105320.0,105310.0,0.00621]
[1738218528115,1.16852696,105320.0,105310.0,0.00621]
[1738218528327,1.16852696,105320.0,105310.0,0.10141]
[1738218528627,1.01102696,105320.0,105310.0,0.10141]
[1738218528926,1.07918892,105320.0,105310.0,0.10141]
[1738218529226,1.01102696,105320.0,105310.0,0.10141]
[1738218529427,1.07918892,105320.0,105310.0,0.10141]
[1738218529925,1.01102696,105320.0,105310.0,0.10141]
[1738218530823,0.97966696,105320.0,105310.0,0.16957196]
[1738218531133,1.01102696,105320.0,105310.0,0.16957196]
[1738218531426,1.01102696,105320.0,105310.0,0.10141]
[1738218532124,1.01102696,105320.0,105310.0,0.11067092]
[1738218535121,0.97966696,105320.0,105310.0,0.11067092]
[1738218535326,1.01098696,105320.0,105310.0,0.11067092]
[1738218535832,0.97966696,105320.0,105310.0,0.11067092]
[1738218536024,1.01098696,105320.0,105310.0,0.11067092]
[1738218537324,1.01098696,105320.0,105310.0,0.30059392]
[1738218537727,1.01098696,105320.0,105310.0,0.36875588]
[1738218538227,0.942825,105320.0,105310.0,0.36875588]
[1738218539226,1.01098696,105320.0,105310.0,0.36875588]
[1738218542233,0.942825,105320.0,105310.0,0.36875588]
[1738218542736,0.942825,105320.0,105310.0,0.36750588]
[1738218542938,1.01098696,105320.0,105310.0,0.29934392]
[1738218543838,0.911505,105320.0,105310.0,0.36750588]
[1738218544132,0.942825,105320.0,105310.0,0.36750588]
[1738218544340,0.942825,105320.0,105310.0,1.86750588]
[1738218545431,1.01098696,105320.0,105310.0,1.86750588]
[1738218545937,1.01098696,105320.0,105310.0,1.79934392]
[1738218546333,1.07914892,105320.0,105310.0,0.01422092]
[1738218546527,1.10944892,105320.0,105310.0,0.01422092]
[1738218546733,1.04128696,105320.0,105310.0,0.01422092]
[1738218547239,1.10944892,105320.0,105310.0,0.01422092]
[1738218547934,1.04128696,105320.0,105310.0,0.01422092]
[1738218548643,1.10944892,105320.0,105310.0,0.01422092]
[1738218549735,1.04128696,105320.0,105310.0,0.01422092]
[1738218550031,1.10944892,105320.0,105310.0,0.01422092]
[1738218553233,1.04128696,105320.0,105310.0,0.01422092]
[1738218554050,1.01098696,105320.0,105310.0,0.01422092]
[1738218554243,1.04258696,105320.0,105310.0,0.01422092]
[1738218554540,0.974425,105320.0,105310.0,1.58238288]
[1738218554738,0.974425,105320.0,105310.0,1.51422092]
[1738218554934,0.78452,105320.0,105310.0,1.51422092]
[1738218555336,1.04258696,105320.0,105310.0,1.51422092]
[1738218555934,1.20028696,105320.0,105310.0,1.51422092]
[1738218556142,1.04258696,105320.0,105310.0,1.51422092]
[1738218561845,0.974425,105320.0,105310.0,1.51422092]
[1738218562045,0.974425,105320.0,105310.0,0.01422092]
[1738218562547,1.01126696,105320.0,105310.0,0.01422092]
[1738218562743,1.04254696,105320.0,105310.0,0.01422092]
[1738218566343,1.11070892,105320.0,105310.0,0.01422092]
[1738218566848,1.26840892,105320.0,105310.0,0.01422092]
[1738218573249,1.26840892,105320.0,105310.0,0.00496]
[1738218583258,1.26840892,105320.0,105310.0,0.00075]
[1738218589458,1.20024696,105320.0,105310.0,0.00075]
[1738218590560,1.26840892,105320.0,105310.0,0.00075]
[1738218592469,1.20024696,105320.0,105310.0,0.00075]
[1738218592762,1.26840892,105320.0,105310.0,0.00075]
[1738218594565,1.26840892,105320.0,105300.0,1.51343389]
[1738218594771,0.42896196,105310.0,105300.0,1.50934389]
[1738218595369,0.42896196,105310.0,105300.0,0.00934389]
[1738218595561,0.42896196,105310.0,105290.0,0.285649]
[1738218595763,0.39204,105300.0,105290.0,0.29498069]
[1738218596067,0.39204,105300.0,105290.0,1.79905069]
[1738218596570,0.22328,105300.0,105290.0,1.79905069]
[1738218597167,0.22328,105300.0,105290.0,1.80305069]
[1738218598472,0.22328,105300.0,105290.0,1.80405069]
[1738218598671,0.22328,105300.0,105290.0,1.80005069]
[1738218599767,0.413221,105300.0,105290.0,1.80005069]
[1738218600874,0.413221,105300.0,105290.0,0.30005069]
[1738218601073,0.413221,105300.0,105290.0,0.36821265]
[1738218601475,0.413221,105300.0,105290.0,1.86821265]
[1738218601672,0.22328,105300.0,105290.0,1.86821265]
[1738218605177,0.61903656,105310.0,105290.0,1.67826365]
[1738218605178,0.0001426,105310.0,105290.0,1.67826365]
[1738218605381,0.0313826,105310.0,105300.0,0.25810296]
[1738218605769,0.0313426,105310.0,105300.0,0.25810296]
[1738218606583,0.0001426,105310.0,105300.0,0.25810296]
[1738218606776,0.0313426,105310.0,105300.0,0.25810296]
[1738218608083,0.0313426,105310.0,105300.0,0.32626492]
[1738218608277,0.0001426,105310.0,105300.0,0.32726492]
[1738218608576,0.0001426,105310.0,105300.0,0.25910296]
[1738218608776,0.0001426,105310.0,105300.0,0.68806492]
[1738218608971,0.0001426,105310.0,105300.0,0.32726492]
[1738218610080,0.0001426,105310.0,105300.0,0.33131492]
[1738218614387,1.15223,105330.0,105300.0,0.50217392]
[1738218614579,1.15223,105330.0,105320.0,0.25806696]
[1738218614778,1.18343,105330.0,105320.0,1.75806696]
[1738218614984,1.18343,105330.0,105320.0,1.82622892]
[1738218615183,1.18343,105330.0,105320.0,1.75806696]
[1738218616191,0.99354,105330.0,105320.0,1.75806696]
[1738218616580,0.99554,105330.0,105320.0,1.75806696]
[1738218617284,0.4269,105330.0,105320.0,1.75806696]
[1738218617483,0.4259,105330.0,105320.0,1.75806696]
[1738218618376,0.3618,105330.0,105320.0,1.82622892]
[1738218618586,0.0001426,105340.0,105320.0,2.06528588]
[1738218618793,0.0001426,105340.0,105330.0,0.78150992]
[1738218618980,0.0001426,105340.0,105330.0,0.71334796]
[1738218620080,0.0001426,105340.0,105330.0,0.35254796]
[1738218621288,0.0011426,105340.0,105330.0,0.35254796]
[1738218624587,0.0011426,105340.0,105330.0,0.32204796]
[1738218625287,0.1910106,105340.0,105330.0,0.32204796]
[1738218626291,0.1910106,105340.0,105330.0,0.28974796]
[1738218627194,0.1910106,105340.0,105330.0,0.29376796]
[1738218628192,0.0011426,105340.0,105330.0,0.29376796]
[1738218629494,0.0323026,105340.0,105330.0,0.29376796]
[1738218632497,0.0011426,105340.0,105330.0,0.29376796]
[1738218632696,0.0323026,105340.0,105330.0,0.29376796]
[1738218634898,0.0011426,105340.0,105330.0,0.29376796]
[1738218635096,0.0011426,105340.0,105330.0,0.35556796]
[1738218635491,0.0011426,105340.0,105330.0,1.85556796]
[1738218635693,0.61997256,105340.0,105330.0,0.00402]
[1738218636089,0.61997256,105340.0,105330.0,0.07218196]
[1738218636289,0.61997256,105340.0,105330.0,1.50402]
[1738218636899,0.5829706,105340.0,105330.0,1.76206796]
[1738218639801,0.65113256,105340.0,105330.0,1.693906]
[1738218644300,0.65113256,105340.0,105330.0,1.50402]
[1738218656409,0.71929452,105340.0,105330.0,1.50402]
[1738218656604,0.71929452,105340.0,105330.0,1.5]
[1738218660416,0.65113256,105340.0,105330.0,1.5]
[1738218661413,0.71929452,105340.0,105330.0,1.5]
[1738218663020,0.65113256,105340.0,105330.0,1.5]
[1738218664124,0.65109256,105340.0,105330.0,1.5]
[1738218664512,0.65109256,105340.0,105330.0,1.563]
[1738218671122,0.65105256,105340.0,105330.0,1.563]
[1738218676132,0.65105256,105340.0,105330.0,1.56693]
[1738218682142,0.61997256,105340.0,105330.0,1.56693]
[1738218682336,0.65105256,105340.0,105330.0,1.56693]
[1738218687135,0.3930226,105340.0,105330.0,1.63509196]
[1738218687339,0.3930226,105340.0,105330.0,1.82497796]
[1738218688241,0.3929826,105340.0,105330.0,1.82497796]
[1738218688835,0.0321826,105340.0,105330.0,1.82497796]
[1738218690643,0.0011426,105340.0,105330.0,1.82497796]
[1738218697542,0.0011426,105340.0,105330.0,2.18577796]
[1738218700349,0.0011426,105340.0,105330.0,2.25393992]
[1738218700553,0.0011426,105340.0,105330.0,2.25593992]
[1738218701349,0.0001426,105340.0,105330.0,2.25593992]
[1738218701651,0.0001426,105340.0,105330.0,2.18777796]
[1738218702149,0.0001426,105340.0,105330.0,2.25593992]
[1738218702346,0.0001426,105340.0,105330.0,2.18777796]
[1738218705955,0.0001426,105340.0,105330.0,1.82697796]
[1738218706155,0.0001426,105340.0,105330.0,2.18777796]
[1738218709247,0.61897256,105340.0,105330.0,1.82697796]
[1738218709548,0.64997256,105340.0,105330.0,0.195816]
[1738218709755,0.68217256,105340.0,105330.0,0.195816]
[1738218709950,0.68217256,105340.0,105330.0,1.695816]
[1738218710357,0.68217256,105340.0,105330.0,1.76397796]
[1738218710554,0.6140106,105340.0,105330.0,1.76397796]
[1738218710756,0.68217256,105340.0,105330.0,1.76197796]
[1738218711554,0.68317256,105340.0,105330.0,1.76197796]
[1738218712058,0.49330456,105340.0,105330.0,1.76197796]
[1738218715258,0.68317256,105340.0,105330.0,1.693816]
[1738218715454,0.68317256,105340.0,105330.0,1.76197796]
[1738218715659,0.68317256,105340.0,105330.0,1.50393]
[1738218725065,0.68317256,105340.0,105330.0,0.00393]
[1738218725066,0.75133452,105340.0,105330.0,0.00393]
[1738218725672,0.90903452,105340.0,105330.0,0.00393]
[1738218730261,0.97879332,105340.0,105330.0,0.00393]
[1738218731670,0.91063136,105340.0,105330.0,0.00393]
[1738218731871,0.75293136,105340.0,105330.0,0.00393]
[1738218732067,0.75289136,105340.0,105330.0,0.07209196]
[1738218732466,0.75289136,105340.0,105330.0,1.57209196]
[1738218732673,0.75289136,105340.0,105330.0,1.50393]
[1738218733972,0.68313256,105340.0,105330.0,1.50393]
[1738218736671,0.68313256,105340.0,105330.0,1.57209196]
[1738218736672,0.5827706,105340.0,105330.0,1.57209196]
[1738218736872,0.65093256,105340.0,105330.0,1.50393]
[1738218737874,0.65093256,105340.0,105330.0,1.53543]
[1738218741884,0.65093256,105340.0,105330.0,1.60359196]
[1738218742776,0.5827706,105340.0,105330.0,1.60359196]
[1738218743178,0.5827706,105340.0,105330.0,1.63599196]
[1738218745088,0.3929026,105340.0,105330.0,1.82587796]
[1738218748282,0.3619426,105340.0,105330.0,1.82587796]
[1738218748485,0.3929026,105340.0,105330.0,1.82587796]
[1738218753088,0.3619426,105340.0,105330.0,1.82587796]
[1738218753387,0.65089256,105340.0,105330.0,0.00393]
[1738218753586,0.68159256,105340.0,105330.0,0.00393]
[1738218753992,0.5827306,105340.0,105330.0,0.07209196]
[1738218754388,0.65089256,105340.0,105330.0,0.07209196]
[1738218755588,0.65089256,105340.0,105330.0,0.00393]
[1738218756089,0.75005452,105340.0,105330.0,0.00393]
[1738218758495,0.56018652,105340.0,105320.0,1.5]
[1738218758692,0.68354796,105330.0,105320.0,1.5]
[1738218759687,0.68354796,105330.0,105320.0,1.50376]
[1738218760888,0.68354796,105330.0,105320.0,1.50576]
[1738218764497,0.69304319,105330.0,105320.0,1.50576]
[1738218765794,0.85074319,105330.0,105320.0,1.50576]
[1738218766695,0.85074319,105330.0,105320.0,1.57392196]
[1738218767502,0.85074319,105330.0,105320.0,1.50576]
[1738218769305,0.85074319,105330.0,105320.0,0.00576]
[1738218771814,0.69304319,105330.0,105320.0,0.00576]
[1738218772017,0.69304319,105330.0,105320.0,0.07392196]
[1738218772414,0.69304319,105330.0,105320.0,0.00576]
[1738218785828,0.85074319,105330.0,105320.0,0.00576]
[1738218791322,0.88162319,105330.0,105320.0,0.00576]
[1738218793829,0.581566,105330.0,105320.0,0.07392196]
[1738218794024,0.584566,105330.0,105320.0,0.07192196]
[1738218794423,0.65372796,105330.0,105320.0,0.00376]
[1738218795027,0.65072796,105330.0,105320.0,0.00376]
[1738218795330,0.65372796,105330.0,105320.0,0.00376]
[1738218795536,0.65272796,105330.0,105320.0,0.00376]
[1738218795729,0.65372796,105330.0,105320.0,0.00376]
[1738218795929,0.65372796,105330.0,105320.0,0.07192196]
[1738218796132,0.65372796,105330.0,105320.0,0.00376]
[1738218796630,0.3648,105330.0,105320.0,0.32998792]
[1738218796936,0.03484,105330.0,105320.0,0.36098792]
[1738218797234,0.03484,105330.0,105320.0,0.29282596]
[1738218797937,0.39564,105330.0,105320.0,0.29282596]
[1738218798332,0.39264,105330.0,105320.0,0.29282596]
[1738218799326,0.001,105330.0,105320.0,0.36098792]
[1738218799525,0.001,105330.0,105320.0,0.72178792]
[1738218799733,0.0001426,105340.0,105330.0,0.32620992]
[1738218799932,0.0001426,105340.0,105330.0,2.25020992]
[1738218800637,0.0001426,105340.0,105330.0,2.18204796]
[1738218800837,0.0001426,105340.0,105330.0,2.25020992]
[1738218801036,0.0001426,105340.0,105330.0,2.25385992]
[1738218801337,0.0001426,105340.0,105330.0,2.18569796]
[1738218802138,0.0001426,105340.0,105330.0,2.25385992]
[1738218802939,0.0001426,105340.0,105330.0,2.18569796]
[1738218803729,0.5508106,105340.0,105330.0,0.32489796]
[1738218804538,0.1900106,105340.0,105330.0,0.32489796]
[1738218804939,0.5508106,105340.0,105330.0,0.32489796]
[1738218805643,0.61897256,105340.0,105330.0,0.32489796]
[1738218805843,0.3609426,105340.0,105330.0,0.32489796]
[1738218808244,0.3609426,105340.0,105330.0,0.33421009]
[1738218809251,0.3917826,105340.0,105330.0,0.33421009]
[1738218809748,0.3917826,105340.0,105330.0,1.83421009]
[1738218827553,0.0309826,105340.0,105330.0,0.33421009]
[1738218828056,0.0309426,105340.0,105330.0,1.83421009]
[1738218828451,0.0001426,105340.0,105330.0,1.83421009]
[1738218831459,0.0001426,105340.0,105330.0,2.19501009]
[1738218838560,0.5508106,105340.0,105330.0,0.27101009]
[1738218838870,0.5508106,105340.0,105330.0,0.26169796]
[1738218839057,0.5508106,105340.0,105330.0,1.76169796]
[1738218841368,0.5827106,105340.0,105330.0,1.76169796]
[1738218843176,0.3928426,105340.0,105330.0,1.76169796]
[1738218843674,0.0320426,105340.0,105330.0,1.76169796]
[1738218843977,0.0001426,105340.0,105330.0,1.76169796]
[1738218844173,0.0001426,105340.0,105330.0,0.29479796]
[1738218844675,0.0001426,105340.0,105330.0,1.79479796]
[1738218845476,0.0309426,105340.0,105330.0,1.79479796]
[1738218845678,0.0309426,105340.0,105330.0,1.82669796]
[1738218845880,0.0309426,105340.0,105330.0,1.89485992]
[1738218847281,0.0309426,105340.0,105330.0,2.25565992]
[1738218847671,0.0309426,105340.0,105330.0,2.18749796]
[1738218847876,0.0309426,105340.0,105330.0,2.25565992]
[1738218848867,0.0001426,105340.0,105330.0,2.25565992]
[1738218854786,0.0001426,105340.0,105330.0,0.75565992]
[1738218855290,0.0001426,105340.0,105330.0,2.25565992]
[1738218860785,0.0001426,105340.0,105330.0,2.18749796]
[1738218861491,0.0001426,105340.0,105330.0,1.79479796]
[1738218861699,0.1900106,105340.0,105330.0,1.76169796]
[1738218861887,0.2209106,105340.0,105330.0,1.76169796]
[1738218866900,0.5817106,105340.0,105330.0,1.76169796]
[1738218870602,0.64987256,105340.0,105330.0,1.57181196]
[1738218870797,0.5817106,105340.0,105330.0,0.07181196]
[1738218876709,0.5817106,105340.0,105330.0,1.57181196]
[1738218883701,0.3917,105340.0,105330.0,1.57181196]
[1738218883903,0.581568,105340.0,105330.0,1.57181196]
[1738218888911,0.581568,105340.0,105330.0,1.76169796]
[1738218889114,0.581388,105340.0,105330.0,1.76169796]
[1738218889319,0.581388,105340.0,105330.0,1.82609796]
[1738218896120,0.39152,105340.0,105330.0,1.82609796]
[1738218898322,0.581388,105340.0,105330.0,1.82609796]
[1738218903419,0.0001426,105350.0,105340.0,0.189868]
[1738218903623,0.3609426,105350.0,105340.0,0.32619192]
[1738218904021,0.3609426,105350.0,105340.0,1.82619192]
[1738218904221,0.0001426,105350.0,105340.0,1.82619192]
[1738218904417,0.0001426,105350.0,105340.0,1.85669192]
[1738218904828,0.0001426,105350.0,105340.0,1.86019192]
[1738218905626,0.0031426,105350.0,105340.0,1.86019192]
[1738218907528,0.0031426,105350.0,105340.0,1.86961379]
[1738218908029,0.3639426,105350.0,105340.0,1.86961379]
[1738218910131,0.0031426,105350.0,105340.0,0.43777575]
[1738218910328,0.3608,105360.0,105340.0,0.60870775]
[1738218910534,0.36222406,105370.0,105360.0,0.189832]
[1738218910828,0.36222406,105370.0,105360.0,0.32615592]
[1738218911025,0.36222406,105370.0,105360.0,0.35665592]
[1738218912927,0.36522406,105370.0,105360.0,0.35665592]
[1738218913533,0.36222406,105370.0,105360.0,0.35965592]
[1738218914934,0.00142406,105370.0,105360.0,0.72045592]
[1738218915439,0.67963481,105380.0,105370.0,0.189815]
[1738218915628,0.67963481,105380.0,105370.0,0.25797696]
[1738218916336,0.67963481,105380.0,105370.0,0.61877696]
[1738218916837,0.5686226,105380.0,105370.0,0.61877696]
[1738218917136,0.5996226,105380.0,105370.0,0.61877696]
[1738218918234,0.5996226,105380.0,105370.0,2.11877696]
[1738218920535,0.5993826,105380.0,105370.0,2.11877696]
[1738218920839,0.5686226,105380.0,105370.0,2.11877696]
[1738218922330,0.63678456,105380.0,105370.0,2.11877696]
[1738218922533,0.5686226,105380.0,105370.0,2.11877696]
[1738218923941,0.5686226,105380.0,105370.0,2.12228696]
[1738218925231,0.5686226,105380.0,105370.0,2.15358696]
[1738218925436,0.0001426,105380.0,105370.0,2.15358696]
[1738218925640,0.0001426,105380.0,105370.0,2.18488696]
[1738218937449,0.0001426,105380.0,105370.0,0.68488696]
[1738218937940,0.0001426,105380.0,105370.0,2.18488696]
[1738218938850,0.06830456,105380.0,105370.0,2.18488696]
[1738218939147,0.42910456,105380.0,105370.0,1.693325]
[1738218939943,0.49726652,105380.0,105370.0,1.693325]
[1738218940141,0.42910456,105380.0,105370.0,1.693325]
[1738218940341,0.52838652,105380.0,105370.0,1.693325]
[1738218940749,0.52838652,105380.0,105370.0,0.193325]
[1738218941351,0.52838652,105380.0,105370.0,1.693325]
[1738218945244,0.71818352,105380.0,105370.0,1.693325]
[1738218951457,0.68706352,105380.0,105370.0,0.193325]
[1738218951661,0.52794652,105380.0,105370.0,0.193325]
[1738218951852,0.45978456,105380.0,105370.0,0.193325]
[1738218952054,0.45978456,105380.0,105370.0,1.693325]
[1738218953553,0.52794652,105380.0,105370.0,1.693325]
[1738218955248,0.45978456,105380.0,105370.0,1.693325]
[1738218957365,0.52794652,105380.0,105370.0,1.693325]
[1738218964673,0.45978456,105380.0,105370.0,1.693325]
[1738218964875,0.45978456,105380.0,105370.0,1.725925]
[1738218965077,0.52794652,105380.0,105370.0,1.725925]
[1738218969482,0.45978456,105380.0,105370.0,1.725925]
[1738218970878,0.42910456,105380.0,105370.0,1.725925]
[1738218971090,0.45978456,105380.0,105370.0,1.725925]
[1738218971383,0.68755336,105380.0,105370.0,1.756225]
[1738218977184,0.45978456,105380.0,105370.0,1.756225]
[1738218979196,0.68755336,105380.0,105370.0,1.756225]
[1738218980090,0.65687336,105380.0,105370.0,1.756225]
[1738218980288,0.68755336,105380.0,105370.0,1.756225]
[1738218980786,0.32675336,105380.0,105370.0,1.756225]
[1738218981380,0.29607336,105380.0,105370.0,1.756225]
[1738218981585,0.32675336,105380.0,105370.0,1.756225]
[1738218981985,0.68755336,105380.0,105370.0,1.756225]
[1738218982293,0.32675336,105380.0,105370.0,1.756225]
[1738218982682,0.09898456,105380.0,105370.0,1.756225]
[1738218982883,0.45978456,105380.0,105370.0,1.756225]
[1738218983379,0.09898456,105380.0,105370.0,1.756225]
[1738218985287,0.45978456,105380.0,105370.0,1.756225]
[1738218985687,0.09898456,105380.0,105370.0,1.756225]
[1738218985883,0.45978456,105380.0,105370.0,1.756225]
[1738218988092,0.45978456,105380.0,105370.0,1.693325]
[1738218993483,0.45978456,105380.0,105370.0,0.193325]
[1738218993683,0.71774352,105380.0,105370.0,0.193325]
[1738218994198,0.71774352,105380.0,105370.0,1.693325]
[1738218994693,0.71774352,105380.0,105370.0,1.50351]
[1738218996100,0.189827,105370.0,105350.0,0.2540846]
[1738218996303,0.52780392,105360.0,105350.0,0.2221846]
[1738218996487,0.52780392,105360.0,105350.0,1.7221846]
[1738218996793,0.45964196,105360.0,105350.0,1.7221846]
[1738218997582,1.07843592,105360.0,105350.0,1.5001426]
[1738218998789,1.07843592,105360.0,105350.0,0.0001426]
[1738218999190,1.07843592,105360.0,105350.0,1.5001426]
[1738218999396,1.07843592,105360.0,105350.0,1.5021426]
[1738218999696,1.07843592,105360.0,105350.0,1.5031426]
[1738218999994,1.37594305,105360.0,105350.0,1.5031426]
[1738219003383,1.30620472,105360.0,105350.0,1.5031426]
[1738219006000,1.46390472,105360.0,105350.0,1.5031426]
[1738219008100,1.46390472,105360.0,105350.0,1.5021426]
[1738219008492,1.46990472,105360.0,105350.0,1.5011426]
[1738219009592,1.46990472,105360.0,105350.0,0.0011426]
[1738219009794,0.18985,105350.0,105340.0,0.03242366]
[1738219009994,0.65101196,105350.0,105340.0,0.03242366]
[1738219010393,0.68165196,105350.0,105340.0,0.03242366]
[1738219010797,0.68165196,105350.0,105340.0,1.53242366]
[1738219011693,0.68165196,105350.0,105340.0,1.50142366]
[1738219012191,0.68765196,105350.0,105340.0,1.50142366]
[1738219015490,0.69728126,105350.0,105340.0,1.50142366]
[1738219015898,0.85498126,105350.0,105340.0,1.50142366]
[1738219018103,0.92314322,105350.0,105340.0,1.50142366]
[1738219021301,0.85498126,105350.0,105340.0,1.50142366]
[1738219023309,0.92314322,105350.0,105340.0,1.50142366]
[1738219023705,0.89250322,105350.0,105340.0,1.5]
[1738219023897,0.92314322,105350.0,105340.0,1.5]
[1738219024100,0.95474322,105350.0,105340.0,1.5]
[1738219026797,0.95474322,105350.0,105330.0,0.04208418]
[1738219026798,0.189868,105340.0,105330.0,0.04208418]
[1738219027006,0.68699192,105340.0,105330.0,0.04208418]
[1738219027310,0.68699192,105340.0,105330.0,1.54208418]
[1738219028202,0.68899192,105340.0,105330.0,1.54208418]
[1738219029898,0.68899192,105340.0,105330.0,0.0326426]
[1738219033412,0.75874654,105340.0,105330.0,0.0326426]
[1738219036111,0.91644654,105340.0,105330.0,0.0326426]
[1738219036897,0.84669192,105340.0,105330.0,0.0326426]
[1738219050814,0.62082996,105340.0,105330.0,0.0326426]
[1738219051115,0.97767017,105340.0,105330.0,0.0326426]
[1738219051417,1.04583213,105340.0,105330.0,0.0326426]
[1738219053513,0.78934778,105340.0,105330.0,0.0326426]
[1738219054426,0.20807978,105340.0,105330.0,0.2225286]
[1738219054623,0.23867978,105340.0,105330.0,0.2225286]
[1738219054809,0.59947978,105340.0,105330.0,0.2225286]
[1738219056223,0.52972392,105340.0,105330.0,0.2225286]
[1738219056622,0.46156196,105340.0,105330.0,0.2225286]
[1738219062734,0.52972392,105340.0,105330.0,0.1900286]
[1738219062918,0.46156196,105340.0,105330.0,0.1900286]
[1738219076929,0.71959192,105340.0,105330.0,0.0001426]
[1738219084539,0.75558588,105340.0,105310.0,0.01104609]
[1738219084848,1.04782792,105320.0,105310.0,0.00142408]
[1738219085041,1.07838792,105320.0,105310.0,0.00142408]
[1738219085242,1.04782792,105320.0,105310.0,0.00142408]
[1738219085443,1.07838792,105320.0,105310.0,0.00142408]
[1738219087444,1.07838792,105320.0,105310.0,0.00442408]
[1738219094837,1.04782792,105320.0,105310.0,0.00442408]
[1738219095042,1.07838792,105320.0,105310.0,0.00442408]
[1738219095542,1.23608792,105320.0,105310.0,0.00442408]
[1738219096144,1.23608792,105320.0,105300.0,1.59395248]
[1738219096145,1.11434588,105320.0,105300.0,1.59395248]
[1738219096350,0.78284592,105310.0,105300.0,0.09395248]
[1738219098053,0.78284592,105310.0,105300.0,0.09795248]
[1738219098243,0.94054592,105310.0,105300.0,0.09795248]
[1738219098457,0.189951,105300.0,105280.0,0.0649]
[1738219098648,0.45952196,105290.0,105280.0,0.07420271]
[1738219098845,0.45952196,105290.0,105280.0,1.57420271]
[1738219100442,0.45952196,105290.0,105280.0,1.57520271]
[1738219101245,0.71764192,105290.0,105280.0,1.504]
[1738219101445,0.189976,105280.0,105270.0,0.39796835]
[1738219101650,0.68709992,105280.0,105260.0,0.190007]
[1738219101848,0.45952196,105270.0,105260.0,0.25816896]
[1738219102150,0.45952196,105270.0,105260.0,1.75816896]
[1738219102350,0.45952196,105270.0,105260.0,1.690007]
[1738219102646,0.64951596,105270.0,105260.0,1.5]
[1738219102947,0.74411596,105270.0,105260.0,1.5]
[1738219103550,0.74411596,105270.0,105250.0,0.26718248]
[1738219103860,0.74411596,105270.0,105250.0,0.23538248]
[1738219103861,0.42896196,105260.0,105250.0,0.23538248]
[1738219104046,0.42896196,105260.0,105250.0,1.80354444]
[1738219104245,0.42896196,105260.0,105250.0,1.99357444]
[1738219104453,0.42896196,105260.0,105250.0,1.92541248]
[1738219104658,0.49712392,105260.0,105250.0,1.73538248]
[1738219104955,0.49712392,105260.0,105250.0,1.67198248]
[1738219105256,0.52556196,105270.0,105250.0,1.93017444]
[1738219105455,0.52356196,105270.0,105260.0,0.06816196]
[1738219105760,0.52356196,105270.0,105250.0,1.93217144]
[1738219105761,0.74411596,105270.0,105250.0,1.93217144]
[1738219106061,0.3608,105260.0,105250.0,1.93217144]
[1738219106265,0.74411596,105270.0,105250.0,1.76161358]
[1738219106555,0.78002356,105270.0,105250.0,1.79852118]
[1738219106961,0.78002356,105270.0,105250.0,1.79652118]
[1738219107154,0.3618,105270.0,105260.0,0.29408156]
[1738219107353,0.39236,105270.0,105260.0,0.38808156]
[1738219108261,0.39336,105270.0,105260.0,0.38808156]
[1738219109751,0.39236,105270.0,105260.0,0.38808156]
[1738219109951,0.39236,105270.0,105260.0,1.88808156]
[1738219110152,0.49642956,105270.0,105250.0,0.00142462]
[1738219110355,0.71722656,105270.0,105250.0,0.19144962]
[1738219110556,0.74882656,105270.0,105250.0,0.29551918]
[1738219110851,0.74882656,105270.0,105250.0,1.79551918]
[1738219111260,0.74882656,105270.0,105250.0,1.82881918]
[1738219111559,0.645757,105270.0,105250.0,1.82881918]
[1738219111958,0.45576,105270.0,105260.0,0.190012]
[1738219112266,0.45576,105270.0,105260.0,0.29408156]
[1738219112463,0.39336,105270.0,105260.0,0.32408156]
[1738219112655,0.39336,105270.0,105260.0,0.35718156]
[1738219112857,0.03256,105270.0,105260.0,0.35718156]
[1738219113459,0.03156,105270.0,105260.0,0.35718156]
[1738219114258,0.39236,105270.0,105260.0,0.35718156]
[1738219114461,0.582354,105270.0,105260.0,0.253112]
[1738219114968,0.613754,105270.0,105260.0,0.253112]
[1738219115265,0.771454,105270.0,105260.0,0.253112]
[1738219115460,0.613754,105270.0,105260.0,0.253112]
[1738219116866,0.71782356,105270.0,105260.0,0.220012]
[1738219117167,0.71782356,105270.0,105250.0,1.82881418]
[1738219117357,0.77962356,105270.0,105250.0,1.82881418]
[1738219119556,0.77962356,105270.0,105250.0,0.13879418]
[1738219119763,0.78062356,105270.0,105260.0,0.190012]
[1738219120073,0.676554,105270.0,105260.0,0.190012]
[1738219120369,0.78062356,105270.0,105260.0,0.190012]
[1738219120566,0.676554,105270.0,105260.0,0.190012]
[1738219120956,0.48656,105270.0,105260.0,0.190012]
[1738219121361,0.48556,105270.0,105260.0,0.190012]
[1738219121566,0.45406,105270.0,105260.0,0.190012]
[1738219121763,0.42376,105270.0,105260.0,0.29408156]
[1738219121962,0.39236,105270.0,105260.0,0.32728156]
[1738219122164,0.39444,105270.0,105260.0,0.35848156]
[1738219122868,0.39444,105270.0,105260.0,0.254412]
[1738219124673,0.39444,105270.0,105260.0,0.35848156]
[1738219125572,0.39444,105270.0,105260.0,1.85848156]
[1738219126368,0.39444,105270.0,105260.0,1.754412]
[1738219128266,0.68850356,105270.0,105260.0,0.254412]
[1738219128573,0.68850356,105270.0,105260.0,0.190012]
[1738219128773,0.72080356,105270.0,105260.0,1.690012]